bitfinex-derivatives/quotes_SOLF0:USTF0_20250311
["timestamp","ask_amount","ask_price","bid_price","bid_amount"]
[1741654134770,4.159,114.1,113.98,69.02]
[1741654134771,53.07540852,114.09,113.98,69.02]
[1741654134966,53.07540852,114.09,114.03,0.06043302]
[1741654135268,4.159,114.1,114.03,0.06043302]
[1741654135667,342.69540852,114.11,114.0,53.07540852]
[1741654135864,53.07540852,114.13,114.01,4.1004]
[1741654136064,4.3233,114.16,114.05,0.06199454]
[1741654136260,4.3233,114.16,114.05,76.93279454]
[1741654136466,4.3233,114.16,114.05,76.8708]
[1741654136965,4.3233,114.16,114.09,0.06464942]
[1741654137171,68.46,114.18,114.09,0.06464942]
[1741654137361,68.46,114.18,114.08,53.07540852]
[1741654137567,68.46,114.18,114.12,0.06200528]
[1741654138063,53.07540852,114.19,114.12,0.06200528]
[1741654138271,57.39870852,114.21,114.12,0.06200528]
[1741654138467,57.39870852,114.21,114.09,4.1004]
[1741654138667,4.3233,114.21,114.15,0.06211149]
[1741654138865,53.07540852,114.24,114.15,0.06211149]
[1741654139066,53.07540852,114.26,114.15,0.06211149]
[1741654139271,53.07540852,114.26,114.14,53.07540852]
[1741654139468,53.07540852,114.22,114.13,8.2942]
[1741654139670,68.22,114.21,114.02,68.32]
[1741654139868,53.07540852,114.16,114.06,4.3208]
[1741654140168,53.07540852,114.14,114.06,38.84051022]
[1741654140567,68.36,114.15,114.06,38.84051022]
[1741654140763,53.07540852,114.18,114.06,160.23591874]
[1741654140964,0.0623843,114.11,114.09,0.05754297]
[1741654141365,53.07540852,114.22,114.1,53.07540852]
[1741654141577,4.2082,114.25,114.14,53.07540852]
[1741654141778,4.2082,114.25,114.15,8.7957]
[1741654142069,0.0951,114.33,114.18,53.07540852]
[1741654142275,0.0951,114.33,114.16,289.34]
[1741654142276,53.07540852,114.31,114.2,53.07540852]
[1741654142463,53.07540852,114.31,114.24,0.05584004]
[1741654142873,53.07540852,114.31,114.2,121.71540852]
[1741654143071,358.0,114.34,114.26,0.05662036]
[1741654143272,4.2082,114.35,114.26,0.05662036]
[1741654143467,53.07540852,114.32,114.23,4.3259]
[1741654143670,53.07540852,114.38,114.29,0.05593691]
[1741654143873,0.497,114.4,114.29,0.05593691]
[1741654143874,53.07540852,114.4,114.29,0.05593691]
[1741654144073,53.07540852,114.4,114.28,53.07540852]
[1741654144282,53.07540852,114.36,114.33,0.0655811]
[1741654144577,4.2082,114.41,114.28,53.07540852]
[1741654144773,53.07540852,114.38,114.29,4.3767]
[1741654144965,53.07540852,114.34,114.24,8.7055]
[1741654145165,73.0643,114.33,114.24,4.3288]
[1741654145373,73.0643,114.33,114.24,57.40420852]
[1741654145575,68.76,114.33,114.24,4.3288]
[1741654146470,0.05921248,114.3,114.27,0.05548161]
[1741654146875,57.37970852,114.36,114.24,57.40420852]
[1741654147074,0.05953551,114.3,114.27,0.06463671]
[1741654147470,68.56,114.31,114.23,4.3259]
[1741654147673,53.13927329,114.3,114.19,4.2498]
[1741654147976,53.07540852,114.26,114.15,68.46]
[1741654148172,53.07540852,114.26,114.15,53.07540852]
[1741654148379,4.2345,114.29,114.19,53.07540852]
[1741654148574,121.65540852,114.32,114.21,53.07540852]
[1741654148772,4.2345,114.35,114.23,53.07540852]
[1741654148976,4.2345,114.35,114.25,53.07540852]
[1741654149279,0.06041348,114.28,114.25,0.06610753]
[1741654149479,53.07540852,114.28,114.2,4.2498]
[1741654149776,0.06626107,114.28,114.2,4.2498]
[1741654149976,53.07540852,114.27,114.23,0.0604571]
[1741654150282,53.13382758,114.25,114.15,53.07540852]
[1741654150580,53.07540852,114.23,114.14,4.2845]
[1741654150773,68.56,114.24,114.14,4.2845]
[1741654151174,68.56,114.24,114.15,53.07540852]
[1741654151375,390.02,114.34,114.15,53.07540852]
[1741654151376,68.56,114.27,114.15,53.07540852]
[1741654151575,0.06401898,114.2,114.18,0.05919975]
[1741654151776,53.07540852,114.26,114.15,53.07540852]
[1741654152076,68.56,114.27,114.16,53.07540852]
[1741654152278,68.56,114.27,114.18,53.13202682]
[1741654152578,53.07540852,114.24,114.14,4.2845]
[1741654152777,53.07540852,114.2,114.09,53.07540852]
[1741654152976,53.07540852,114.18,114.07,66.08480852]
[1741654153179,53.07540852,114.16,114.07,13.0094]
[1741654153379,53.07540852,114.14,114.03,342.03540852]
[1741654153586,8.7694,114.08,114.03,342.03540852]
[1741654153876,53.07540852,114.12,114.02,4.4001]
[1741654154074,53.07540852,114.1,114.02,4.4001]
[1741654154271,53.07540852,114.1,114.01,4.1214]
[1741654154471,53.07540852,114.12,114.01,57.19680852]
[1741654154678,8.7675,114.1,114.03,53.07540852]
[1741654154875,0.06089611,114.07,114.04,0.06425562]
[1741654155077,342.03540852,114.18,114.05,53.07540852]
[1741654155078,68.42,114.17,114.05,53.07540852]
[1741654155274,8.7648,114.14,114.07,53.07540852]
[1741654155477,53.07540852,114.16,114.06,72.8539]
[1741654155676,8.7699,114.07,114.04,4.1188]
[1741654155876,53.07540852,114.11,114.01,4.1214]
[1741654156073,121.57540852,114.13,114.01,57.19680852]
[1741654156277,0.0564884,114.07,114.01,57.19680852]
[1741654156471,0.0564884,114.07,114.01,4.1214]
[1741654156683,0.0564884,114.07,114.01,57.19680852]
[1741654156884,0.0564884,114.07,114.01,4.1214]
[1741654157384,8.7725,114.04,114.01,4.1214]
[1741654157583,0.0564884,114.07,114.03,0.06549265]
[1741654157786,8.7721,114.04,114.03,0.06549265]
[1741654158582,8.7721,114.04,113.93,655.07245821]
[1741654158583,53.07540852,114.03,113.92,53.07540852]
[1741654158778,8.7782,113.97,113.91,154.76258218]
[1741654158986,121.47540852,114.01,113.91,154.76258218]
[1741654159181,53.07540852,113.99,113.91,154.76258218]
[1741654159574,121.35540852,113.99,113.91,150.42978218]
[1741654159787,0.05706809,113.96,113.94,0.05627503]
[1741654162089,53.07540852,113.95,113.81,476.54000637]
[1741654162285,8.7816,113.92,113.81,488.99240637]
[1741654162581,53.07540852,113.91,113.81,199.85240637]
[1741654162887,53.07540852,113.86,113.81,187.40000637]
[1741654163887,0.05925529,113.85,113.82,0.06601534]
[1741654164187,129.88360852,113.84,113.81,173.91586374]
[1741654164486,121.09540852,113.84,113.81,173.91586374]
[1741654164988,0.05925529,113.85,113.78,128.42083955]
[1741654165486,121.15540852,113.88,113.8,0.06663262]
[1741654165691,0.05628014,113.83,113.8,0.06663262]
[1741654165882,289.26,113.92,113.82,53.07540852]
[1741654166382,53.07540852,113.91,113.8,4.2079]
[1741654166890,53.07540852,113.91,113.8,57.28330852]
[1741654167286,289.26,113.92,113.84,0.05943151]
[1741654167287,0.06300353,113.87,113.84,0.05943151]
[1741654167691,0.06300353,113.87,113.8,4.2079]
[1741654167989,53.07540852,113.91,113.84,0.0593935]
[1741654168190,53.07540852,113.89,113.84,0.0593935]
[1741654168388,0.05765935,113.85,113.8,4.2079]
[1741654168782,53.07540852,113.89,113.85,0.06533142]
[1741654168983,53.07540852,113.89,113.8,4.2079]
[1741654169380,0.06387941,113.88,113.86,0.06547353]
[1741654169583,289.26,113.92,113.86,0.06547353]
[1741654169783,121.13540852,113.95,113.82,53.07540852]
[1741654169990,0.06157618,113.88,113.82,53.07540852]
[1741654170289,0.06157618,113.88,113.87,0.05988583]
[1741654170685,53.07540852,113.95,113.84,53.07540852]
[1741654170886,121.03540852,113.95,113.84,53.07540852]
[1741654171082,0.05770818,113.89,113.86,0.06605983]
[1741654171283,0.05770818,113.89,113.82,4.4191]
[1741654171483,0.05770818,113.89,113.83,53.07540852]
[1741654171695,121.01540852,113.95,113.86,0.0552951]
[1741654171894,53.07540852,113.97,113.86,53.13070362]
[1741654172087,53.07540852,113.97,113.86,55.71540852]
[1741654172287,53.07540852,113.95,113.83,120.95540852]
[1741654172688,357.48,113.98,113.82,4.4191]
[1741654172689,53.07540852,113.93,113.82,4.4191]
[1741654172890,68.0,113.92,113.82,4.4191]
[1741654173387,0.06740074,113.88,113.86,0.06228836]
[1741654173993,0.06740074,113.88,113.8,4.2079]
[1741654174290,53.07540852,113.87,113.8,4.2079]
[1741654174491,53.07540852,113.89,113.8,12.9983]
[1741654174695,53.07540852,113.87,113.8,4.2079]
[1741654174890,67.7,113.86,113.77,4.3581]
[1741654175299,0.06270079,113.85,113.82,0.06024031]
[1741654175591,53.07540852,113.89,113.82,0.06024031]
[1741654176091,0.05607996,113.85,113.81,8.7893]
[1741654176295,0.05607996,113.85,113.84,0.06225198]
[1741654176594,61.85980852,113.89,113.8,8.79]
[1741654176790,53.07540852,113.89,113.78,67.76]
[1741654176984,0.05817379,113.86,113.83,0.06545099]
[1741654177394,53.07540852,113.85,113.83,0.06545099]
[1741654177901,120.59540852,113.85,113.83,0.06545099]
[1741654178089,53.07540852,113.84,113.74,8.5082]
[1741654178789,53.07540852,113.82,113.74,8.5082]
[1741654178994,61.86470852,113.82,113.74,17.3034]
[1741654179193,53.07540852,113.84,113.74,8.5082]
[1741654179394,0.0597716,113.79,113.77,0.06350746]
[1741654179798,53.07540852,113.84,113.74,8.5082]
[1741654180198,0.06046705,113.79,113.77,0.0592312]
[1741654180598,67.52,113.85,113.74,61.58360852]
[1741654180797,67.52,113.85,113.74,8.5082]
[1741654180993,0.05637959,113.79,113.77,0.06164278]
[1741654181395,67.0,113.8,113.74,4.2214]
[1741654181597,53.07540852,113.78,113.72,4.1706]
[1741654181801,8.7922,113.78,113.77,0.06558514]
[1741654182101,2.64,113.78,113.69,4.4791]
[1741654182301,67.0,113.8,113.68,4.1525]
[1741654182600,53.07540852,113.78,113.68,57.22790852]
[1741654182799,53.07540852,113.8,113.68,57.22790852]
[1741654182993,66.8,113.8,113.7,53.07540852]
[1741654183191,0.06449837,113.75,113.73,8.85937421]
[1741654183391,0.06449837,113.75,113.73,0.06337421]
[1741654183694,289.82,113.82,113.76,8.7933]
[1741654184000,66.72,113.84,113.76,53.07540852]
[1741654184200,66.72,113.84,113.77,12.7671]
[1741654184499,53.07540852,113.9,113.78,120.17540852]
[1741654184700,53.07540852,113.88,113.78,67.1]
[1741654184900,53.07540852,113.9,113.78,120.17540852]
[1741654185095,53.07540852,113.92,113.82,0.05841182]
[1741654185500,8.7834,113.9,113.8,53.07540852]
[1741654185701,53.07540852,113.92,113.8,53.07540852]
[1741654185902,343.01540852,113.94,113.82,53.07540852]
[1741654186099,53.07540852,113.98,113.86,53.07540852]
[1741654186497,66.96,113.99,113.82,53.07540852]
[1741654186498,0.06405687,113.93,113.91,0.05864941]
[1741654186698,53.07540852,113.92,113.82,53.07540852]
[1741654186893,53.07540852,113.92,113.79,66.88]
[1741654186894,8.7853,113.87,113.78,53.07540852]
[1741654187099,119.95540852,113.88,113.77,12.7671]
[1741654187298,53.07540852,113.86,113.77,12.7671]
[1741654187506,66.9,113.9,113.78,53.07540852]
[1741654187696,53.07540852,113.89,113.78,53.07540852]
[1741654188007,0.06010683,113.85,113.83,0.05952937]
[1741654188211,0.06010683,113.85,113.77,12.7671]
[1741654188212,67.06,113.84,113.77,8.6325]
[1741654189403,53.07540852,113.85,113.77,8.6325]
[1741654189601,8.85026348,113.82,113.79,0.06606774]
[1741654190104,8.7899,113.81,113.79,0.06606774]
[1741654190605,53.07540852,113.81,113.79,0.06606774]
[1741654190805,8.7906,113.8,113.79,0.06606774]
[1741654191103,66.58,113.8,113.71,34.07496735]
[1741654191304,53.07540852,113.76,113.71,34.07496735]
[1741654191801,53.07540852,113.74,113.69,140.28858696]
[1741654192005,119.51540852,113.74,113.69,140.28858696]
[1741654192403,53.07540852,113.72,113.7,0.05777233]
[1741654192609,66.46,113.71,113.69,140.28858696]
[1741654193006,8.7984,113.7,113.69,140.28858696]
[1741654193210,61.87380852,113.7,113.69,126.66508696]
[1741654193410,64.51380852,113.7,113.69,113.45738696]
[1741654193604,8.7991,113.69,113.68,237.08440182]
[1741654194003,11.4391,113.69,113.68,223.01133589]
[1741654194201,8.7999,113.68,113.67,270.59565821]
[1741654194415,61.87530852,113.68,113.67,177.39334635]
[1741654194817,61.87530852,113.68,113.59,12.9716]
[1741654194818,55.71540852,113.68,113.6,241.18198954]
[1741654195113,53.07540852,113.68,113.6,241.18198954]
[1741654195409,61.87590852,113.68,113.6,241.18198954]
[1741654195610,61.87590852,113.68,113.63,0.06323584]
[1741654195611,0.06699863,113.65,113.63,0.06323584]
[1741654197310,48.19079054,113.64,113.63,0.06323584]
[1741654198709,56.99379054,113.64,113.63,0.06323584]
[1741654199812,55.71540852,113.64,113.53,4.2133]
[1741654200110,53.07540852,113.62,113.53,4.2133]
[1741654200307,53.07540852,113.62,113.5,53.07540852]
[1741654200507,53.07540852,113.58,113.48,57.28870852]
[1741654200716,53.07540852,113.56,113.41,290.2]
[1741654200907,53.07540852,113.54,113.43,53.07540852]
[1741654201111,53.13255681,113.5,113.47,0.06293593]
[1741654201311,65.58,113.49,113.47,0.06293593]
[1741654201511,65.58,113.49,113.41,8.6633]
[1741654201714,65.58,113.49,113.39,53.07540852]
[1741654201916,53.07540852,113.48,113.47,7.891e-05]
[1741654202118,65.58,113.49,113.39,53.07540852]
[1741654202519,53.07540852,113.48,113.35,4.1899]
[1741654202719,53.07540852,113.45,113.33,4.1079]
[1741654203227,0.06695171,113.4,113.38,0.05577686]
[1741654203717,67.1,113.48,113.38,53.07540852]
[1741654203917,67.1,113.48,113.4,53.07540852]
[1741654204115,67.1,113.48,113.41,4.4546]
[1741654204317,0.06344268,113.45,113.38,53.07540852]
[1741654204521,0.06344268,113.45,113.42,53.07540852]
[1741654204722,67.26,113.57,113.44,53.07540852]
[1741654205018,67.3,113.61,113.53,53.07540852]
[1741654205223,67.3,113.61,113.55,61.88520852]
[1741654205426,67.3,113.61,113.54,8.6346]
[1741654205720,67.3,113.61,113.47,53.07540852]
[1741654205721,67.3,113.61,113.51,53.07540852]
[1741654205917,53.07540852,113.6,113.48,8.6346]
[1741654206120,8.8084,113.57,113.56,8.525e-05]
[1741654206318,290.56,113.57,113.42,53.07540852]
[1741654206521,67.36,113.56,113.46,53.07540852]
[1741654206820,94.9988825,113.59,113.51,53.07540852]
[1741654207020,12.04769763,113.57,113.51,53.07540852]
[1741654207222,12.04769763,113.57,113.54,8.8106]
[1741654207418,12.04769763,113.57,113.53,53.07540852]
[1741654207725,94.9988825,113.59,113.55,53.07540852]
[1741654207920,8.33337541,113.59,113.58,8.8077]
[1741654208123,228.10444401,113.6,113.57,53.07540852]
[1741654208424,204.92989475,113.62,113.59,53.07540852]
[1741654208615,56.44573177,113.63,113.61,53.07540852]
[1741654209224,10.56,113.63,113.56,53.07540852]
[1741654209421,10.56,113.63,113.53,53.07540852]
[1741654209618,53.07540852,113.62,113.49,53.07540852]
[1741654209828,53.07540852,113.6,113.49,53.07540852]
[1741654210023,8.8434,113.59,113.51,53.07540852]
[1741654210222,14.8928,113.61,113.51,53.07540852]
[1741654210724,53.07540852,113.6,113.49,53.07540852]
[1741654210928,53.07540852,113.58,113.48,53.07540852]
[1741654211120,67.4,113.59,113.5,53.07540852]
[1741654211320,0.05779556,113.56,113.53,0.06550987]
[1741654211522,0.05779556,113.56,113.5,8.8136]
[1741654211827,63.63540852,113.56,113.45,290.64]
[1741654212027,53.14295833,113.54,113.5,142.02183712]
[1741654212322,120.53540852,113.54,113.5,142.02183712]
[1741654212523,131.09540852,113.54,113.5,142.02183712]
[1741654212723,8.8131,113.51,113.5,15.55444152]
[1741654212922,53.07540852,113.52,113.5,15.55444152]
[1741654213123,0.06271222,113.52,113.5,15.55444152]
[1741654213728,0.06271222,113.52,113.49,0.06545338]
[1741654213922,53.07540852,113.62,113.5,53.07540852]
[1741654214125,53.07540852,113.64,113.54,53.07540852]
[1741654214523,53.07540852,113.64,113.53,67.42]
[1741654214722,53.07540852,113.66,113.54,53.07540852]
[1741654214921,53.07540852,113.64,113.53,67.42]
[1741654215130,0.05974112,113.61,113.59,0.06073188]
[1741654215522,53.07540852,113.6,113.59,0.06073188]
[1741654215725,53.07540852,113.6,113.5,4.077]
[1741654215926,0.05974112,113.61,113.52,53.07540852]
[1741654216131,53.07540852,113.62,113.5,57.15240852]
[1741654216320,53.07540852,113.6,113.5,4.077]
[1741654216525,53.07540852,113.58,113.5,4.077]
[1741654217133,0.05738492,113.55,113.53,0.0606816]
[1741654217530,53.07540852,113.64,113.53,2.64]
[1741654217732,53.07540852,113.64,113.52,53.07540852]
[1741654218035,53.07540852,113.6,113.5,294.677]
[1741654218430,53.07540852,113.58,113.5,4.077]
[1741654218833,0.06294366,113.56,113.54,0.06075238]
[1741654219029,0.06294366,113.56,113.54,8.87125238]
[1741654219225,121.01540852,113.63,113.5,4.077]
[1741654219436,53.07540852,113.57,113.48,4.1232]
[1741654219637,8.81,113.55,113.54,4.88e-05]
[1741654219826,8.77347257,113.56,113.41,241.95344183]
[1741654220024,53.07540852,113.49,113.41,241.95344183]
[1741654220228,53.07540852,113.52,113.41,241.95344183]
[1741654220630,53.07540852,113.48,113.41,241.95344183]
[1741654220832,57.55670852,113.52,113.41,4.2182]
[1741654221033,0.06250371,113.46,113.43,0.06773878]
[1741654221331,53.07540852,113.5,113.4,4.3208]
[1741654221634,53.07540852,113.48,113.43,0.06096282]
[1741654221825,0.06703704,113.46,113.43,0.06096282]
[1741654222029,0.06703704,113.46,113.4,4.3208]
[1741654222233,0.06703704,113.46,113.43,0.06084931]
[1741654223531,4.3567,113.56,113.44,53.07540852]
[1741654223735,68.44,113.58,113.43,4.17334931]
[1741654223927,53.07540852,113.53,113.43,4.1125]
[1741654224326,53.07540852,113.51,113.43,4.1125]
[1741654224739,0.06596149,113.48,113.46,0.05583332]
[1741654225139,53.07540852,113.53,113.43,147.57133333]
[1741654225536,6.233e-05,113.48,113.46,0.06056239]
[1741654225747,6.233e-05,113.48,113.46,53.13597091]
[1741654225934,61.88440852,113.57,113.51,8.8125]
[1741654226242,126.22360852,113.59,113.48,53.07540852]
[1741654226439,290.7,113.66,113.5,53.07540852]
[1741654226735,290.7,113.66,113.46,343.77540852]
[1741654226736,53.07540852,113.66,113.54,53.07540852]
[1741654226932,53.07540852,113.66,113.56,0.06729809]
[1741654227137,53.07540852,113.66,113.55,72.7912]
[1741654227637,53.07540852,113.64,113.55,4.1312]
[1741654227836,53.07540852,113.62,113.55,4.1312]
[1741654228032,8.8097,113.56,113.51,4.502]
[1741654228238,53.07540852,113.6,113.51,4.502]
[1741654228639,53.07540852,113.58,113.52,0.06355682]
[1741654228842,0.06688605,113.57,113.49,4.1965]
[1741654229135,8.81,113.55,113.54,0.05733757]
[1741654229335,121.97540852,113.58,113.54,0.05733757]
[1741654229543,53.07540852,113.6,113.54,0.05733757]
[1741654229737,343.77540852,113.64,113.54,0.05733757]
[1741654229738,53.07540852,113.64,113.54,0.05733757]
[1741654229938,0.06510175,113.57,113.52,53.07540852]
[1741654230137,53.07540852,113.64,113.58,0.05681939]
[1741654230444,53.07540852,113.68,113.56,122.13540852]
[1741654230636,53.07540852,113.68,113.57,12.8587]
[1741654230837,4.3673,113.69,113.58,53.07540852]
[1741654231037,53.07540852,113.68,113.57,12.8587]
[1741654231237,13.1667,113.69,113.62,8.8043]
[1741654231442,0.06332483,113.65,113.62,0.06704541]
[1741654231739,0.06332483,113.65,113.59,35.21]
[1741654231940,0.06332483,113.65,113.62,0.06572426]
[1741654233241,0.06332483,113.65,113.62,8.87022426]
[1741654233442,53.07540852,113.72,113.62,0.06572426]
[1741654233740,8.8017,113.66,113.62,0.06572426]
[1741654234039,53.07540852,113.7,113.6,53.07540852]
[1741654234241,53.07540852,113.72,113.6,53.07540852]
[1741654234437,53.07540852,113.68,113.59,35.21]
[1741654234940,0.06778248,113.67,113.65,0.05788821]
[1741654235141,53.07540852,113.66,113.59,35.21]
[1741654235345,61.87850852,113.64,113.59,35.21]
[1741654235639,53.07540852,113.64,113.61,0.06715686]
[1741654235840,53.07540852,113.62,113.6,240.60642175]
[1741654236042,53.07540852,113.61,113.59,335.96802719]
[1741654236241,53.07540852,113.61,113.59,329.19212719]
[1741654236445,8.8061,113.6,113.59,273.65314474]
[1741654236949,11.4461,113.6,113.59,206.65264474]
[1741654237342,8.8061,113.6,113.59,206.65264474]
[1741654237740,53.13652261,113.61,113.59,206.65264474]
[1741654238141,0.06111409,113.61,113.59,206.65264474]
[1741654239246,8.8069,113.59,113.58,0.06642576]
[1741654239542,68.64111409,113.61,113.58,0.06642576]
[1741654239745,8.8069,113.59,113.58,0.06642576]
[1741654240248,68.64111409,113.61,113.58,0.06642576]
[1741654240544,0.06111409,113.61,113.58,0.06642576]
[1741654241445,53.07540852,113.6,113.58,2.576e-05]
[1741654241636,68.4,113.59,113.58,2.576e-05]
[1741654241839,77.2069,113.59,113.58,2.576e-05]
[1741654242735,53.07540852,113.57,113.51,13.08]
[1741654242941,121.47540852,113.59,113.51,13.08]
[1741654243145,53.07540852,113.61,113.51,13.08]
[1741654243540,53.07540852,113.59,113.51,13.08]
[1741654243738,53.13698715,113.57,113.55,0.06665174]
[1741654244042,69.2,113.56,113.51,13.08]
[1741654244243,78.0092,113.56,113.55,0.06740408]
[1741654244435,69.2,113.56,113.51,13.08]
[1741654244841,8.8104,113.55,113.54,0.06703626]
[1741654245253,8.8123,113.52,113.51,13.08]
[1741654245546,53.07540852,113.55,113.51,13.08]
[1741654245747,69.2,113.56,113.51,13.08]
[1741654245944,53.07540852,113.54,113.51,13.08]
[1741654246444,69.2,113.56,113.51,13.08]
[1741654246646,0.06172396,113.54,113.51,13.13898503]
[1741654246948,53.07540852,113.59,113.51,13.08]
[1741654247445,69.22,113.6,113.51,13.08]
[1741654247649,53.07540852,113.61,113.51,13.08]
[1741654248348,8.8097,113.56,113.51,13.08]
[1741654248545,36.29063652,113.6,113.51,13.08]
[1741654248748,36.29063652,113.6,113.53,53.07540852]
[1741654248949,36.29063652,113.6,113.55,53.07540852]
[1741654249148,96.41808348,113.61,113.56,4.2766]
[1741654249347,37.03561719,113.61,113.57,53.07540852]
[1741654249553,37.03561719,113.61,113.56,4.2766]
[1741654250055,45.84121719,113.61,113.56,4.2766]
[1741654250449,0.05613055,113.6,113.57,0.06386359]
[1741654251848,53.13153907,113.6,113.51,13.08]
[1741654252050,53.07540852,113.58,113.51,13.08]
[1741654252555,53.07540852,113.56,113.51,13.08]
[1741654252952,53.07540852,113.54,113.51,13.08]
[1741654253348,53.07540852,113.54,113.43,343.67540852]
[1741654253553,68.6,113.55,113.45,53.07540852]
[1741654254353,68.6,113.55,113.46,4.083]
[1741654254659,0.06322769,113.51,113.49,0.05842033]
[1741654255770,0.06322769,113.51,113.42,8.3895]
[1741654255971,53.07540852,113.43,113.35,145.4096078]
[1741654256269,53.07540852,113.45,113.34,61.80850852]
[1741654256465,76.78,113.44,113.34,61.80850852]
[1741654256666,81.1875,113.44,113.34,61.80850852]
[1741654256869,76.78,113.44,113.34,61.80850852]
[1741654257170,53.07540852,113.45,113.38,0.06676946]
[1741654257373,8.8217,113.4,113.34,8.7331]
[1741654257566,53.07540852,113.47,113.36,53.07540852]
[1741654257766,53.07540852,113.45,113.34,53.07540852]
[1741654257962,53.07540852,113.46,113.34,53.07540852]
[1741654258169,53.07540852,113.44,113.33,53.07540852]
[1741654258473,10.57973576,113.46,113.35,53.07540852]
[1741654258665,53.07540852,113.47,113.35,53.07540852]
[1741654258871,53.07540852,113.49,113.37,53.07540852]
[1741654259171,53.07540852,113.45,113.33,53.07540852]
[1741654259367,71.51793,113.46,113.34,71.51793]
[1741654259774,71.51793,113.44,113.32,75.86043]
[1741654259971,71.51793,113.4,113.31,8.73]
[1741654260168,8.8251,113.36,113.28,71.51793]
[1741654260469,71.51793,113.41,113.19,145.4096078]
[1741654260673,71.51793,113.39,113.27,8.8317]
[1741654260973,290.74,113.5,113.34,71.51793]
[1741654261170,290.74,113.5,113.35,8.7627]
[1741654261365,0.05584072,113.41,113.39,0.06315606]
[1741654261771,71.51793,113.44,113.32,71.51793]
[1741654261964,71.51793,113.42,113.3,71.51793]
[1741654262168,0.06040123,113.41,113.3,71.51793]
[1741654262369,71.51793,113.4,113.29,17.3176]
[1741654262665,4.2703,113.43,113.26,71.51793]
[1741654262666,71.51793,113.38,113.26,71.51793]
[1741654262871,71.51793,113.36,113.24,71.51793]
[1741654263073,4.4213,113.35,113.26,71.51793]
[1741654263271,4.4213,113.35,113.24,71.51793]
[1741654263571,0.05966117,113.31,113.22,71.51793]
[1741654263970,71.51793,113.3,113.18,79.86883]
[1741654264171,71.51793,113.3,113.18,71.51793]
[1741654264374,8.8325,113.27,113.18,71.51793]
[1741654264572,8.8325,113.27,113.14,8.3509]
[1741654264573,71.51793,113.26,113.14,79.86883]
[1741654264871,0.06127235,113.24,113.18,71.51793]
[1741654265070,75.89363,113.29,113.12,8.3202]
[1741654265266,71.51793,113.27,113.17,71.51793]
[1741654265469,71.51793,113.25,113.12,8.3202]
[1741654265675,71.51793,113.27,113.16,71.51793]
[1741654265871,4.168,113.26,113.17,71.51793]
[1741654266071,71.51793,113.23,113.1,145.4096078]
[1741654266276,0.06552629,113.23,113.1,153.9971078]
[1741654266576,71.51793,113.22,113.1,225.5150378]
[1741654266772,0.05948921,113.18,113.14,71.51793]
[1741654266973,0.05948921,113.18,113.1,149.6013078]
[1741654267175,71.51793,113.18,113.11,8.8443]
[1741654267373,0.05718677,113.15,113.12,71.51793]
[1741654267676,71.51793,113.21,113.1,145.4096078]
[1741654267877,71.51793,113.21,113.14,8.8412]
[1741654268079,71.51793,113.28,113.12,71.51793]
[1741654268380,71.51793,113.28,113.15,71.51793]
[1741654268381,73.28346672,113.28,113.15,71.51793]
[1741654268574,73.28346672,113.28,113.18,71.51793]
[1741654268776,71.51793,113.34,113.16,8.7347]
[1741654268777,71.51793,113.34,113.21,71.51793]
[1741654268978,101.0,113.43,113.26,71.51793]
[1741654269165,71.51793,113.37,113.27,8.7347]
[1741654269369,71.51793,113.42,113.29,80.34813]
[1741654269570,71.51793,113.39,113.27,8.7347]
[1741654269768,71.51793,113.36,113.27,8.7347]
[1741654269973,8.8249,113.36,113.27,8.7347]
[1741654270173,0.06089375,113.33,113.3,0.06142568]
[1741654270374,71.51793,113.31,113.16,71.51793]
[1741654270582,71.51793,113.28,113.17,12.9031]
[1741654270971,71.51793,113.31,113.21,8.8363]
[1741654271178,71.51793,113.28,113.17,12.9031]
[1741654271481,8.8279,113.32,113.22,8.8356]
[1741654271675,71.51793,113.34,113.21,0.05467793]
[1741654272178,71.51793,113.34,113.22,71.51793]
[1741654272381,71.51793,113.34,113.17,12.9031]
[1741654272584,71.51793,113.29,113.17,12.9031]
[1741654273085,0.06458355,113.24,113.16,8.8401]
[1741654273281,0.06458355,113.24,113.11,12.9223]
[1741654273282,71.51793,113.23,113.11,12.9223]
[1741654273483,79.88023,113.28,113.13,71.51793]
[1741654273682,71.51793,113.25,113.13,71.51793]
[1741654273882,71.51793,113.25,113.11,12.9223]